bitfinex/quotes_SOLUSD_20240718
["timestamp","ask_amount","ask_price","bid_price","bid_amount"]
[1721313322464,6.2677,159.55,159.44,6.3758]
[1721313322670,12.8033,159.56,159.45,1.25406965]
[1721313322975,31.5833,159.56,159.46,1.25400819]
[1721313323169,25.0473,159.56,159.46,1.25400819]
[1721313323368,6.2669,159.57,159.46,1.25400819]
[1721313323570,25.0469,159.57,159.47,16.1259]
[1721313323868,30.19,159.6,159.48,46.2538041]
[1721313323869,18.78,159.6,159.48,46.2538041]
[1721313324071,18.78,159.6,159.49,1.2537043]
[1721313324285,25.046,159.59,159.49,1.2537043]
[1721313324572,6.2648,159.63,159.5,6.3758]
[1721313324776,6.2648,159.63,159.51,46.25343728]
[1721313324984,6.2649,159.62,159.52,1.25343833]
[1721313325157,6.2653,159.61,159.52,1.25343833]
[1721313325364,6.2661,159.59,159.51,20.0]
[1721313325669,6.2661,159.59,159.51,21.25358276]
[1721313326066,6.2665,159.58,159.5,6.3758]
[1721313326261,6.2665,159.58,159.51,1.25365342]
[1721313326663,18.78,159.62,159.52,1.25364255]
[1721313326869,18.78,159.62,159.51,1.25343841]
[1721313327078,18.78,159.64,159.52,1.25353988]
[1721313327253,6.2649,159.62,159.52,1.25353988]
[1721313327588,18.78,159.64,159.53,15.2549]
[1721313327871,18.78,159.66,159.54,66.25328063]
[1721313328178,25.0438,159.65,159.55,1.2531712]
[1721313328563,6.2641,159.64,159.55,1.2531712]
[1721313329453,18.78,159.68,159.55,1.2531712]
[1721313329652,6.2641,159.64,159.55,1.2531712]
[1721313329876,6.2641,159.64,159.54,65.0]
[1721313329877,6.2657,159.6,159.54,1.25325026]
[1721313330062,6.2657,159.6,159.53,15.2549]
[1721313330372,6.2662,159.59,159.53,15.2549]
[1721313331179,18.78,159.61,159.53,15.2549]
[1721313331374,6.2665,159.58,159.53,15.2549]
[1721313331551,6.2661,159.59,159.53,15.2549]
[1721313332463,6.2676,159.55,159.48,15.1078]
[1721313332756,25.0472,159.57,159.48,15.1078]
[1721313332956,6.2675,159.56,159.48,15.1078]
[1721313333160,18.78,159.57,159.49,82.14012508]
[1721313333486,6.2676,159.55,159.49,80.88626309]
[1721313333778,6.2672,159.56,159.48,15.1078]
[1721313333956,6.2676,159.55,159.48,15.1078]
[1721313334159,25.0476,159.55,159.48,15.1078]
[1721313334490,25.0468,159.57,159.49,1.25397581]
[1721313334654,6.5489,159.6,159.48,15.1078]
[1721313334977,6.268,159.54,159.48,15.1078]
[1721313335484,25.0483,159.54,159.48,15.1078]
[1721313336491,18.78,159.54,159.48,15.1078]
[1721313336785,18.78,159.56,159.48,15.1078]
[1721313337155,6.2688,159.52,159.48,15.1078]
[1721313338371,6.2692,159.51,159.47,80.89640748]
[1721313338579,18.78,159.56,159.44,15.7702]
[1721313338767,6.2696,159.5,159.44,15.7702]
[1721313339199,18.78,159.54,159.45,1.25429448]
[1721313339496,25.0484,159.53,159.45,1.25429448]
[1721313339871,6.2688,159.52,159.45,1.25429448]
[1721313340073,6.2692,159.51,159.45,1.25429448]
[1721313340269,6.2685,159.53,159.45,1.25429448]
[1721313340581,25.0472,159.57,159.45,11.25429448]
[1721313340767,8.26195036,159.61,159.46,45.0]
[1721313340972,6.2668,159.57,159.47,1.25373631]
[1721313341666,6.2668,159.58,159.47,1.25373631]
[1721313341886,6.2668,159.57,159.48,21.7159]
[1721313342098,8.26195036,159.61,159.48,21.7159]
[1721313342279,25.0457,159.6,159.49,46.25373837]
[1721313342489,6.2661,159.59,159.49,46.25373837]
[1721313342791,18.78,159.6,159.49,1.25373837]
[1721313343088,6.2673,159.56,159.49,1.25373624]
[1721313343291,6.2677,159.55,159.48,21.7159]
[1721313343471,6.2677,159.55,159.49,1.25393415]
[1721313343666,6.2677,159.55,159.48,21.7159]
[1721313343874,6.2677,159.55,159.49,1.25388698]
[1721313344091,18.78,159.57,159.49,1.25388698]
[1721313344298,18.78,159.57,159.48,21.7159]
[1721313344496,15.6657,159.59,159.48,21.7159]
[1721313344497,6.2684,159.53,159.48,21.7159]
[1721313344999,18.78,159.56,159.48,21.7159]
[1721313345000,6.2681,159.54,159.48,21.7159]
[1721313345301,6.2676,159.55,159.48,21.7159]
[1721313345507,25.0472,159.57,159.49,1.25391783]
[1721313345685,6.2672,159.57,159.49,1.25391783]
[1721313345889,18.78,159.58,159.48,21.7159]
[1721313346298,6.2679,159.55,159.48,21.7159]
[1721313346680,6.2677,159.55,159.48,21.7159]
[1721313347007,6.2672,159.57,159.49,1.25389891]
[1721313347177,6.2674,159.56,159.49,1.25389891]
[1721313347378,6.2674,159.56,159.48,21.7159]
[1721313347379,6.2676,159.55,159.48,21.7159]
[1721313347588,6.2684,159.53,159.48,21.7159]
[1721313348009,6.2681,159.54,159.48,21.7159]
[1721313348216,18.78,159.56,159.48,21.7159]
[1721313348500,18.78,159.57,159.48,15.4825]
[1721313348712,6.2692,159.51,159.48,15.4825]
[1721313349004,6.2699,159.49,159.44,22.1033]
[1721313349213,6.2699,159.49,159.44,15.4909]
[1721313349786,25.0504,159.48,159.44,15.4909]
[1721313350083,6.2704,159.48,159.44,15.4909]
[1721313350291,18.78,159.5,159.44,15.4909]
[1721313350778,18.78,159.48,159.44,15.4909]
[1721313351406,49.01,159.48,159.4,21.3693]
[1721313351617,18.78,159.46,159.4,21.3693]
[1721313351782,18.78,159.5,159.41,1.25469288]
[1721313351981,8.952262,159.44,159.4,21.3693]
[1721313352187,8.952262,159.44,159.41,1.25450179]
[1721313352390,8.952262,159.44,159.4,21.3693]
[1721313352890,8.952262,159.44,159.41,1.25450015]
[1721313353212,8.952262,159.44,159.4,21.3693]
[1721313353600,8.952262,159.44,159.41,1.25452413]
[1721313353803,8.952262,159.44,159.4,21.3693]
[1721313354115,8.952262,159.44,159.4,15.124]
[1721313354296,15.224462,159.44,159.4,15.124]
[1721313354497,15.224462,159.44,159.38,0.8372166]
[1721313354692,6.2725,159.43,159.38,0.8372166]
[1721313355111,8.952262,159.44,159.38,2.09198149]
[1721313356427,8.952262,159.44,159.39,22.1146]
[1721313356605,8.952262,159.44,159.4,46.25437927]
[1721313357225,8.952262,159.44,159.4,1.25437927]
[1721313357383,8.952262,159.44,159.39,22.1146]
[1721313359109,8.952262,159.44,159.39,16.0495]
[1721313359790,25.0512,159.46,159.39,16.0495]
[1721313360407,18.78,159.47,159.39,16.0495]
[1721313360711,6.2703,159.48,159.4,1.2545876]
[1721313360914,6.27,159.49,159.4,1.2545876]
[1721313361107,31.2646,159.54,159.4,1.2545876]
[1721313361308,18.78,159.52,159.39,17.30393528]
[1721313361498,6.2713,159.46,159.39,17.30393528]
[1721313361695,6.2713,159.46,159.39,16.0495]
[1721313362102,6.2708,159.47,159.39,16.0495]
[1721313362315,15.5937,159.54,159.4,1.25466906]
[1721313362497,25.0495,159.51,159.4,1.25466906]
[1721313362700,25.0492,159.51,159.4,46.25466906]
[1721313363100,6.2687,159.53,159.41,6.551]
[1721313363299,15.88053777,159.56,159.43,16.2332]
[1721313363300,22.14783777,159.56,159.43,16.2332]
[1721313363504,20.03406975,159.55,159.43,8.53500775]
[1721313363819,20.03406975,159.55,159.44,1.25407073]
[1721313364006,20.03406975,159.55,159.44,46.25407073]
[1721313364317,20.03406975,159.55,159.44,56.25407073]
[1721313364318,1.25406975,159.55,159.44,56.25407073]
[1721313364627,7.52006975,159.59,159.47,10.0]
[1721313364916,1.25406975,159.59,159.48,66.25363166]
[1721313365095,6.2658,159.6,159.48,66.25363166]
[1721313365427,25.0475,159.56,159.45,7.80463034]
[1721313365592,0.75406975,159.55,159.46,1.25393632]
[1721313365792,0.75406975,159.54,159.46,46.25393632]
[1721313366294,0.75406975,159.54,159.46,1.25393632]
[1721313366508,0.75406975,159.54,159.47,16.2047]
[1721313366815,25.0472,159.57,159.48,1.25388456]
[1721313366816,0.75406975,159.56,159.48,1.25388456]
[1721313367315,0.75406975,159.56,159.48,46.25388456]
[1721313367913,7.02046975,159.58,159.48,46.25388456]
[1721313368214,0.75406975,159.58,159.48,46.25388456]
[1721313368393,7.02046975,159.58,159.48,46.25388456]
[1721313368795,6.2668,159.57,159.48,46.25388456]
[1721313368995,0.75406975,159.56,159.48,46.25388456]
[1721313369192,0.75406975,159.58,159.48,46.25388456]
[1721313369494,0.75406975,159.57,159.49,30.0]
[1721313369694,0.75406975,159.59,159.5,46.25352242]
[1721313369900,7.02026975,159.59,159.5,45.0]
[1721313370106,7.02026975,159.59,159.49,20.0]
[1721313370325,0.75406975,159.58,159.5,1.2536501]
[1721313370618,7.02056975,159.58,159.48,80.89133497]
[1721313370810,0.75406975,159.58,159.48,80.89133497]
[1721313370994,0.75406975,159.58,159.49,46.25371075]
[1721313371495,0.75406975,159.59,159.47,97.10110748]
[1721313371701,25.80006975,159.59,159.48,21.25372942]
[1721313371909,6.2665,159.58,159.48,21.25372942]
[1721313372102,0.75406975,159.57,159.48,1.25372942]
[1721313372318,25.0452,159.61,159.48,147.14506439]
[1721313372535,0.75406975,159.6,159.49,80.88626309]
[1721313372704,7.01976975,159.6,159.5,46.25353929]
[1721313372906,7.01976975,159.6,159.51,80.87612125]
[1721313373218,0.75406975,159.6,159.53,6.1054]
[1721313373722,0.75406975,159.6,159.55,16.272]
[1721313374034,0.75406975,159.59,159.55,16.272]
[1721313374323,0.75406975,159.61,159.55,16.272]
[1721313374521,0.75406975,159.6,159.55,16.272]
[1721313375831,19.53406975,159.6,159.5,15.5526]
[1721313376040,6.2672,159.56,159.5,15.5526]
[1721313376218,0.75406975,159.55,159.5,16.80647429]
[1721313376427,0.75406975,159.58,159.5,16.80647429]
[1721313376632,0.75406975,159.57,159.5,16.80647429]
[1721313376939,78.12605036,159.66,159.5,16.80647429]
[1721313376940,0.75406975,159.6,159.5,16.80647429]
[1721313377118,0.75406975,159.6,159.5,15.5526]
[1721313377318,0.75406975,159.59,159.51,1.25357382]
[1721313377542,7.61858741,159.65,159.51,1.25357382]
[1721313377543,25.0449,159.62,159.51,1.25357382]
[1721313377729,0.75406975,159.61,159.51,1.25357382]
[1721313377930,0.75406975,159.6,159.5,15.5526]
[1721313378244,0.75406975,159.6,159.51,1.25354197]
[1721313378421,7.01986975,159.6,159.5,15.5526]
[1721313378616,0.75406975,159.6,159.51,1.25357559]
[1721313379248,7.01976975,159.6,159.51,1.25357547]
[1721313379446,0.75406975,159.59,159.51,1.25357547]
[1721313379647,0.75406975,159.59,159.5,15.5526]
[1721313379819,0.75406975,159.59,159.51,1.25360306]
[1721313380348,0.75406975,159.59,159.5,16.80611147]
[1721313380637,6.2664,159.58,159.5,16.80611147]
[1721313380846,7.02086975,159.57,159.5,15.5526]
[1721313381044,19.53406975,159.57,159.5,15.5526]
[1721313381247,6.2676,159.56,159.5,15.5526]
[1721313381542,25.80196975,159.55,159.46,16.7488975]
[1721313381719,0.75406975,159.54,159.46,16.7488975]
[1721313381916,25.80206975,159.54,159.46,16.7488975]
[1721313382139,19.53406975,159.54,159.46,15.495]
[1721313382347,25.0484,159.53,159.46,15.495]
[1721313382642,0.75406975,159.52,159.46,16.74913898]
[1721313382850,0.75406975,159.51,159.46,16.74913898]
[1721313383146,6.1217,159.58,159.46,16.74913898]
[1721313383147,0.75406975,159.55,159.46,16.74913898]
[1721313383360,0.75406975,159.55,159.46,26.74913898]
[1721313383649,0.75406975,159.57,159.47,20.0]
[1721313383953,0.75406975,159.57,159.48,56.25360401]
[1721313384245,0.75406975,159.61,159.49,21.25350709]
[1721313384469,0.75406975,159.6,159.49,21.25350709]
[1721313384629,0.75406975,159.6,159.49,1.25350709]
[1721313384824,6.2672,159.56,159.47,1.25382443]
[1721313385045,0.75406975,159.55,159.47,1.25382443]
[1721313385346,0.75406975,159.54,159.47,1.25382443]
[1721313385559,19.53406975,159.54,159.46,16.74891237]
[1721313385857,0.75406975,159.53,159.46,16.74891237]
[1721313386031,0.75406975,159.56,159.46,16.74891237]
[1721313386531,18.78,159.55,159.46,16.74891237]
[1721313386742,7.02206975,159.54,159.46,16.74891237]
[1721313386932,19.53406975,159.54,159.46,15.495]
[1721313387347,18.78,159.51,159.41,16.2252]
[1721313387550,0.75406975,159.5,159.42,1.25443952]
[1721313388356,0.75406975,159.52,159.42,1.25443952]
[1721313388541,0.75406975,159.51,159.42,1.25443952]
[1721313388725,0.75406975,159.51,159.42,46.25443952]
[1721313389259,0.75406975,159.51,159.42,56.25443952]
[1721313389437,0.75406975,159.53,159.42,46.25443952]
[1721313389628,0.75406975,159.53,159.42,56.25443952]
[1721313389828,0.75406975,159.53,159.42,86.48443952]
[1721313391438,0.75406975,159.55,159.42,86.48443952]
[1721313391753,6.0074,159.56,159.44,10.0]
[1721313391754,0.75406975,159.54,159.44,10.0]
[1721313391958,0.75406975,159.54,159.45,46.25387967]
[1721313392269,0.75406975,159.54,159.46,1.25388022]
[1721313392832,0.75406975,159.54,159.47,22.3947]
[1721313393039,0.75406975,159.57,159.48,1.25374392]
[1721313393232,7.02096975,159.57,159.49,1.25375363]
[1721313393433,6.2672,159.56,159.49,1.25375363]
[1721313393635,0.75406975,159.55,159.49,1.25375363]
[1721313393858,0.75406975,159.56,159.49,1.25375363]
[1721313394063,0.75406975,159.58,159.49,1.25375363]
[1721313394250,0.75406975,159.57,159.47,22.3947]
[1721313394769,19.53406975,159.57,159.47,22.3947]
[1721313394940,6.2687,159.53,159.47,22.3947]
[1721313395139,0.75406975,159.52,159.47,22.3947]
[1721313396148,6.268,159.54,159.47,22.3947]
[1721313396347,18.78,159.56,159.47,22.3947]
[1721313396348,0.75406975,159.53,159.47,22.3947]
[1721313396861,30.23,159.58,159.48,1.25396391]
[1721313396862,0.75406975,159.55,159.48,1.25396391]
[1721313397062,0.75406975,159.54,159.47,22.3947]
[1721313397536,0.75406975,159.54,159.47,15.839]
[1721313397953,0.75406975,159.53,159.47,15.839]
[1721313398159,6.2692,159.51,159.47,15.839]
[1721313398473,0.75406975,159.5,159.43,22.3947]
[1721313398761,0.75406975,159.51,159.44,1.25411649]
[1721313399258,0.75406975,159.51,159.43,22.3947]
[1721313399463,6.27,159.49,159.43,22.3947]
[1721313399667,7.02456975,159.48,159.43,15.839]
[1721313400051,6.2708,159.47,159.4,1.25443961]
[1721313400245,0.75406975,159.46,159.4,1.25443961]
[1721313400453,0.75406975,159.45,159.4,1.25443961]
[1721313400957,0.75406975,159.46,159.4,1.25443961]
[1721313401163,0.75406975,159.44,159.39,21.9715]
[1721313401361,7.02506975,159.47,159.4,1.25459882]
[1721313401588,18.78,159.46,159.39,15.4158]
[1721313401759,0.75406975,159.45,159.39,15.4158]
[1721313402939,7.02576975,159.45,159.39,15.4158]
[1721313403141,0.75406975,159.44,159.39,15.4158]
[1721313403761,0.75406975,159.45,159.4,1.25463192]
[1721313403960,0.75406975,159.48,159.4,1.25463192]
[1721313404161,0.75406975,159.48,159.4,31.48463192]
[1721313404459,0.75406975,159.51,159.42,6.6068]
[1721313404661,0.75406975,159.51,159.43,1.25422871]
[1721313405046,7.02326975,159.51,159.43,46.25422871]
[1721313405256,0.75406975,159.5,159.43,1.25422871]
[1721313405462,7.02376975,159.5,159.43,1.25422871]
[1721313405658,0.75406975,159.5,159.43,1.25422871]
[1721313405878,0.75406975,159.54,159.43,46.25422871]
[1721313406076,6.2688,159.52,159.43,46.25422871]
[1721313406276,0.75406975,159.51,159.43,1.25422871]
[1721313406779,7.02386975,159.5,159.42,7.86099155]
[1721313406976,6.27,159.49,159.43,80.91670388]
[1721313407283,6.27,159.49,159.42,7.86099155]
[1721313407284,0.75406975,159.48,159.42,7.86099155]
[1721313407574,0.75406975,159.48,159.4,1.25432527]
[1721313407753,0.75406975,159.48,159.4,21.25432527]
[1721313407951,6.2708,159.47,159.4,1.25432527]
[1721313408171,0.75406975,159.46,159.4,1.25432527]
[1721313408359,0.75406975,159.45,159.4,1.25432527]
[1721313408562,25.80446975,159.48,159.4,1.25432527]
[1721313408776,7.02446975,159.48,159.4,1.25432527]
[1721313409660,6.2708,159.47,159.4,1.25432527]
[1721313409875,0.75406975,159.46,159.4,1.25432527]
[1721313410070,0.75406975,159.45,159.39,16.67028207]
[1721313410889,7.02566975,159.45,159.39,15.4158]
[1721313411255,19.53406975,159.45,159.39,15.4158]
[1721313411463,6.2719,159.44,159.39,15.4158]
[1721313411664,0.75406975,159.43,159.38,0.8372166]
[1721313411862,0.75406975,159.42,159.38,0.8372166]
[1721313412099,0.75406975,159.44,159.38,0.8372166]
[1721313412276,7.02636975,159.44,159.38,0.8372166]
[1721313412884,0.75406975,159.44,159.38,0.8372166]
[1721313413083,25.0515,159.45,159.38,0.8372166]
[1721313413084,0.75406975,159.43,159.38,0.8372166]
[1721313414064,0.75406975,159.44,159.38,0.8372166]
[1721313414465,7.02596975,159.44,159.38,0.8372166]
[1721313414771,6.2726,159.43,159.38,0.8372166]
[1721313414972,0.75406975,159.42,159.38,0.8372166]
[1721313415375,25.0517,159.45,159.38,0.8372166]
[1721313415574,0.75406975,159.44,159.39,1.25475165]
[1721313415776,6.27,159.49,159.39,1.25475165]
[1721313416086,6.2707,159.48,159.39,1.25475165]
[1721313416286,21.6164,159.5,159.39,1.25475165]
[1721313416472,18.78,159.49,159.39,1.25475165]
[1721313416676,18.78,159.47,159.38,0.8372166]
[1721313416880,30.23,159.49,159.38,0.8372166]
[1721313416881,25.0516,159.45,159.38,0.8372166]
[1721313417078,6.2738,159.4,159.38,0.8372166]
[1721313417289,0.75406975,159.39,159.38,0.8372166]
[1721313417774,7.02796975,159.39,159.38,0.8372166]
[1721313418875,0.75406975,159.39,159.38,0.8372166]
[1721313419276,25.80796975,159.39,159.38,0.8372166]
[1721313419501,25.0539,159.39,159.38,0.8372166]
[1721313420198,18.78,159.36,159.26,16.458]
[1721313420417,0.75406975,159.35,159.27,1.25551759]
[1721313420605,7.02956975,159.35,159.27,1.25551759]
[1721313420794,0.75406975,159.35,159.27,1.25551759]
[1721313421387,25.80946975,159.35,159.27,1.25551759]
[1721313421714,0.75406975,159.34,159.27,1.25551759]
[1721313423415,18.78,159.32,159.22,0.8372166]
[1721313423713,15.8887,159.37,159.26,10.0]
[1721313423887,0.75406975,159.38,159.28,10.0]
[1721313424112,0.75406975,159.38,159.29,1.25505468]
[1721313424299,0.75406975,159.41,159.33,22.1377]
[1721313424493,25.0516,159.45,159.34,1.25479776]
[1721313424798,0.75406975,159.44,159.34,1.25479776]
[1721313425189,0.75406975,159.44,159.34,46.25479776]
[1721313425394,0.75406975,159.44,159.34,56.25479776]
[1721313426193,0.75406975,159.45,159.34,56.25479776]
[1721313427015,7.02566975,159.45,159.34,56.25479776]
[1721313427691,0.75406975,159.45,159.34,56.25479776]
[1721313427892,0.75406975,159.46,159.36,40.23]
[1721313428208,0.75406975,159.46,159.37,46.25446408]
[1721313428913,0.75406975,159.47,159.38,10.0]
[1721313429219,16.3178,159.51,159.36,30.23]
[1721313429220,6.2707,159.48,159.39,31.48430579]
[1721313429405,0.75406975,159.48,159.4,17.42401507]
[1721313429591,0.75406975,159.51,159.4,17.42401507]
[1721313429915,0.75406975,159.51,159.42,6.4638]
[1721313430119,0.75406975,159.51,159.43,1.25412711]
[1721313430324,0.75406975,159.51,159.43,56.25412711]
[1721313430493,0.75406975,159.55,159.43,56.25412711]
[1721313430694,0.75406975,159.54,159.43,56.25412711]
[1721313430892,0.75406975,159.54,159.45,30.23]
[1721313431219,0.75406975,159.54,159.46,1.2538494]
[1721313431804,0.75406975,159.57,159.47,15.4264]
[1721313431999,0.75406975,159.57,159.48,1.25375526]
[1721313432313,0.75406975,159.57,159.49,1.25375526]
[1721313432517,6.268,159.54,159.49,1.25375526]
[1721313432694,0.75406975,159.53,159.49,1.25375526]
[1721313433186,27.46242074,159.58,159.48,1.25383722]
[1721313433187,7.02166975,159.55,159.48,1.25383722]
[1721313433386,0.75406975,159.54,159.48,1.25383722]
[1721313433586,0.75406975,159.54,159.49,1.25387494]
[1721313434012,0.75406975,159.56,159.49,1.25387494]
[1721313434695,0.75406975,159.59,159.5,1.25342013]
[1721313435023,0.75406975,159.59,159.51,6.5236]
[1721313435191,0.75406975,159.61,159.52,46.25327361]
[1721313435518,0.75406975,159.64,159.53,10.0]
[1721313435687,0.75406975,159.64,159.54,1.25318868]
[1721313435887,0.75406975,159.64,159.55,1.25318868]
[1721313436187,6.2645,159.63,159.55,1.25318868]
[1721313436388,0.75406975,159.62,159.55,1.25318868]
[1721313436801,0.75406975,159.62,159.51,6.5236]
[1721313437114,0.75406975,159.62,159.44,33.99]
[1721313437115,6.2671,159.57,159.49,1.25356791]
[1721313437413,18.78,159.59,159.49,1.25356791]
[1721313437414,7.02136975,159.56,159.49,1.25356791]
[1721313437617,6.2676,159.55,159.49,1.25356791]
[1721313437812,0.75406975,159.54,159.49,1.25356791]
[1721313438017,0.75406975,159.54,159.48,1.25373314]
[1721313438198,0.75406975,159.54,159.47,21.6728]
[1721313438199,6.2688,159.52,159.47,21.6728]
[1721313438407,1.25406975,159.54,159.48,1.25390637]
[1721313438408,6.2684,159.53,159.48,1.25390637]
[1721313438608,1.25406975,159.52,159.48,1.25390637]
[1721313439122,6.2697,159.5,159.44,1.25390628]
[1721313439306,6.2688,159.52,159.44,1.25390628]
[1721313439819,6.2694,159.51,159.44,1.25390628]
[1721313440111,7.52366975,159.5,159.44,1.25390628]
[1721313440901,1.25406975,159.5,159.44,1.25390628]
[1721313441208,1.25406975,159.54,159.44,1.25390628]
[1721313441395,6.2684,159.53,159.44,1.25390628]
[1721313441711,7.52296975,159.52,159.44,1.25390628]
[1721313442019,7.52206975,159.54,159.44,1.25390628]
[1721313442214,1.25406975,159.54,159.46,10.0]
[1721313442419,1.25406975,159.58,159.47,1.25373631]
[1721313442600,6.2677,159.55,159.47,1.25373631]
[1721313442801,1.25406975,159.54,159.45,1.25374232]
[1721313443018,6.2688,159.52,159.45,1.25374232]
[1721313443214,6.2684,159.53,159.46,1.25393801]
[1721313443413,1.25406975,159.52,159.44,1.25390057]
[1721313443719,6.2696,159.5,159.44,1.25390057]
[1721313443900,6.2691,159.52,159.44,1.25390057]
[1721313444089,1.25406975,159.51,159.44,1.25390057]
[1721313444294,7.52326975,159.51,159.44,46.25390057]
[1721313444923,6.2697,159.5,159.44,46.25390057]
[1721313445219,7.52236975,159.54,159.44,1.25390057]
[1721313445391,1.25406975,159.53,159.44,46.25390057]
[1721313445597,6.268,159.54,159.45,10.0]
[1721313445794,1.25406975,159.56,159.46,46.25378604]
[1721313446218,6.268,159.54,159.46,46.25378604]
[1721313446391,7.52246975,159.53,159.46,46.25378604]
[1721313446597,6.2678,159.55,159.46,46.25378604]
[1721313446901,1.25406975,159.57,159.47,10.0]
[1721313447114,1.25406975,159.57,159.49,15.3017]
[1721313447308,6.266,159.59,159.51,6.0466]
[1721313447496,1.25406975,159.58,159.52,1.25346264]
[1721313448116,6.2673,159.56,159.52,1.25346264]
[1721313448318,1.25406975,159.6,159.52,1.25346264]
[1721313448503,7.51996975,159.6,159.52,1.25346264]
[1721313448905,6.2662,159.59,159.52,1.25346264]
[1721313449200,27.52242074,159.63,159.52,1.25346264]
[1721313449201,6.2656,159.61,159.52,1.25346264]
[1721313449403,1.25406975,159.6,159.52,46.25346264]
[1721313450329,6.2664,159.58,159.52,1.25346264]
[1721313450629,1.25406975,159.6,159.52,1.25346264]
[1721313450839,6.2651,159.62,159.52,46.25346264]
[1721313451126,7.51946975,159.61,159.52,46.25346264]
[1721313451312,7.51976975,159.6,159.52,46.25346264]
[1721313451631,1.25406975,159.59,159.52,46.25346264]
[1721313451834,7.52006975,159.59,159.52,46.25346264]
[1721313452134,1.25406975,159.59,159.52,1.25346264]
[1721313452434,6.2672,159.56,159.52,1.25346264]
[1721313452737,1.25406975,159.6,159.52,1.25346264]
[1721313453108,7.51996975,159.6,159.52,1.25346264]
[1721313453313,1.25406975,159.59,159.52,1.25346264]
[1721313453522,1.25406975,159.6,159.52,46.25346264]
[1721313454229,20.09406975,159.63,159.52,1.25346264]
[1721313454408,6.2663,159.59,159.52,1.25346264]
[1721313454620,1.25406975,159.58,159.52,1.25346264]
[1721313454817,1.25406975,159.62,159.52,1.25346264]
[1721313455023,6.2656,159.61,159.52,1.25346264]
[1721313455208,1.25406975,159.6,159.52,1.25346264]
[1721313455411,6.266,159.59,159.52,1.25346264]
[1721313455704,7.52076975,159.58,159.52,1.25346264]
[1721313456041,6.2668,159.57,159.52,1.25346264]
[1721313456538,1.25406975,159.61,159.52,1.25346264]
[1721313456829,1.25406975,159.6,159.52,1.25346264]
[1721313457017,1.25406975,159.63,159.52,11.25346264]
[1721313457417,6.2648,159.62,159.52,11.25346264]
[1721313457728,7.51956975,159.61,159.52,11.25346264]
[1721313457952,1.25406975,159.61,159.53,45.0]
[1721313458111,1.25406975,159.64,159.54,1.25324931]
[1721313458316,1.25406975,159.64,159.55,1.25323128]
[1721313458655,6.2652,159.61,159.55,1.25323128]
[1721313459265,6.2648,159.63,159.55,1.25323128]
[1721313459421,1.25406975,159.63,159.56,15.1732]
[1721313459748,7.51846975,159.63,159.57,1.25308283]
[1721313459956,1.25406975,159.65,159.58,1.25308452]
[1721313460117,1.25406975,159.64,159.58,1.25308452]
[1721313460319,1.25406975,159.67,159.58,1.25308452]
[1721313460650,6.2633,159.66,159.58,1.25308452]
[1721313460821,6.2633,159.66,159.59,6.1544]
[1721313461020,6.2633,159.66,159.6,1.25284903]
[1721313461250,1.25406975,159.65,159.61,1.25285832]
[1721313461549,1.25406975,159.68,159.61,1.25285832]
[1721313461757,1.25406975,159.67,159.61,1.25285832]
[1721313461915,6.2637,159.65,159.61,1.25285832]
[1721313462120,6.2637,159.65,159.6,1.25286286]
[1721313462338,1.25406975,159.67,159.61,1.25203398]
[1721313462566,1.25406975,159.68,159.61,1.25203398]
[1721313463081,1.25406975,159.7,159.62,15.5833]
[1721313463224,1.25406975,159.7,159.63,1.25255063]
[1721313463419,6.2617,159.7,159.63,1.25255063]
[1721313463625,1.25406975,159.69,159.63,1.25255063]
[1721313463860,1.25406975,159.73,159.63,46.25255063]
[1721313464171,1.25406975,159.73,159.59,6.1544]
[1721313464454,6.2632,159.67,159.6,46.25281746]
[1721313464636,7.51736975,159.66,159.6,46.25281746]
[1721313464835,18.84,159.7,159.6,46.25281746]
[1721313464836,7.51776975,159.65,159.6,1.25281746]
[1721313465038,1.25406975,159.65,159.6,1.25281746]
[1721313465238,6.2633,159.66,159.6,1.25281746]
[1721313465879,1.25406975,159.69,159.6,1.25281746]
[1721313465880,6.2637,159.65,159.6,1.25281746]
[1721313466190,1.25406975,159.65,159.6,1.25281746]
[1721313466372,6.2633,159.66,159.6,1.25281746]
[1721313466554,6.2629,159.67,159.6,1.25281746]
[1721313466755,1.25406975,159.66,159.6,1.25281746]
[1721313467059,7.51746975,159.66,159.6,1.25281746]
[1721313467257,1.25406975,159.69,159.6,1.25281746]
[1721313467472,1.25406975,159.69,159.6,46.25281746]